fUST/lending_fUST_20240201
["ID","MTS","AMOUNT","RATE_DAILY","PERIOD"]
[313074330,1706721040766,-534.97764921,0.00019726,2]
[313074331,1706721040775,-500.0,0.00019726,2]
[313074332,1706721040785,-500.0,0.00019726,2]
[313074334,1706721040794,-500.0,0.00019726,2]
[313074335,1706721040803,-500.0,0.00019726,2]
[313074337,1706721040813,-500.0,0.00019726,2]
[313074339,1706721040822,-500.0,0.00019726,2]
[313074341,1706721040832,-2836.63,0.00019726,2]
[313074342,1706721040841,-1019.4,0.00019726,2]
[313074344,1706721040850,-1035.02,0.00019726,2]
[313074345,1706721040859,-1328.09,0.00019726,2]
[313074347,1706721040868,-500.0,0.00019726,2]
[313074349,1706721040877,-1124.8,0.00019726,2]
[313074350,1706721040886,-647.94,0.00019726,2]
[313074351,1706721040895,-500.0,0.00019726,2]
[313074352,1706721040905,-500.0,0.00019726,2]
[313074353,1706721040915,-423.32,0.00019726,2]
[313074354,1706721040924,-1107.53,0.00019726,2]
[313074355,1706721040933,-9960.78,0.00019726,2]
[313074356,1706721040941,-1267.67,0.00019726,2]
[313074357,1706721040951,-500.0,0.00019726,2]
[313074358,1706721040960,-2089.44,0.00019726,2]
[313074359,1706721040969,-920.42,0.00019726,2]
[313074360,1706721040980,-645.71,0.00019726,2]
[313074361,1706721040989,-500.0,0.00019726,2]
[313074362,1706721040998,-1278.35,0.00019726,2]
[313074363,1706721041007,-500.0,0.00019726,2]
[313074364,1706721041018,-500.0,0.00019726,2]
[313074365,1706721041027,-6805.11,0.00019726,2]
[313074366,1706721041037,-500.0,0.00019726,2]
[313074367,1706721041046,-754.5,0.00019726,2]
[313074368,1706721041055,-186.8035473,0.00019726,2]
[313074369,1706721041064,-13774.12,0.00019726,2]
[313074370,1706721041074,-500.0,0.00019726,2]
[313074371,1706721041083,-1927.15,0.00019726,2]
[313074372,1706721041093,-1427.26,0.00019726,2]
[313074373,1706721041104,-500.0,0.00019726,2]
[313074374,1706721041114,-500.0,0.00019726,2]
[313074375,1706721041125,-500.0,0.00019726,2]
[313074376,1706721041136,-500.0,0.00019726,2]
[313074377,1706721041145,-500.0,0.00019726,2]
[313074378,1706721041156,-981.78,0.00019726,2]
[313074379,1706721041165,-3691.58,0.00019726,2]
[313074380,1706721041175,-500.0,0.00019726,2]
[313074381,1706721041184,-1126.3,0.00019726,2]
[313074382,1706721041195,-1899.92,0.00019726,2]
[313074383,1706721041204,-2616.0,0.00019726,2]
[313074384,1706721041214,-522.02,0.00019726,2]
[313074385,1706721041223,-6601.71,0.00019726,2]
[313074386,1706721041232,-2230.8,0.00019726,2]
[313074387,1706721041242,-628.95,0.00019726,2]
[313074388,1706721041251,-3030.0,0.00019726,2]
[313074389,1706721041259,-1019.85,0.00019726,2]
[313074390,1706721041268,-1443.4,0.00019726,2]
[313074391,1706721041277,-665.12936154,0.00019923,2]
[313074392,1706721041286,-286.8739664,0.0002,2]
[313074393,1706721041296,-1196.94736584,0.0002,2]
[313074394,1706721041305,-323.57048434,0.0002,2]
[313074395,1706721041315,-155.01240124,0.0002,2]
[313074396,1706721041324,-500.0,0.0002,2]
[313074397,1706721041333,-581.45,0.0002,2]
[313074398,1706721041342,-578.83,0.0002,2]
[313074399,1706721041351,-372.95353061,0.0002,2]
[313074400,1706721041360,-500.82,0.0002,2]
[313074401,1706721041369,-500.0,0.0002,2]
[313074402,1706721041378,-1042.02,0.0002,2]
[313074403,1706721041388,-500.0,0.0002,2]
[313074404,1706721041399,-500.0,0.0002,2]
[313074405,1706721041408,-3182.92,0.0002,2]
[313074406,1706721041418,-500.0,0.0002,2]
[313074407,1706721041427,-500.0,0.0002,2]
[313074408,1706721041436,-500.0,0.0002,2]
[313074409,1706721041446,-500.0,0.0002,2]
[313074410,1706721041455,-500.0,0.0002,2]
[313074411,1706721041467,-1807.89,0.0002,2]
[313074412,1706721041477,-500.0,0.0002,2]
[313074413,1706721041487,-500.0,0.0002,2]
[313074414,1706721041498,-500.0,0.0002,2]
[313074415,1706721041509,-500.0,0.0002,2]
[313074416,1706721041519,-500.0,0.0002,2]
[313074417,1706721041533,-350.250957,0.0002,2]
[313074418,1706721041547,-350.250957,0.0002,2]
[313074419,1706721041560,-500.0,0.0002,2]
[313074420,1706721041574,-2836.63,0.0002,2]
[313074421,1706721041584,-1019.4,0.0002,2]
[313074422,1706721041596,-1035.02,0.0002,2]
[313074423,1706721041608,-1328.09,0.0002,2]
[313074424,1706721041620,-151.0,0.0002,2]
[313074425,1706721041633,-500.0,0.0002,2]
[313074426,1706721041646,-1124.8,0.0002,2]
[313074427,1706721041659,-647.94,0.0002,2]
[313074428,1706721041672,-500.0,0.0002,2]
[313074429,1706721041682,-500.0,0.0002,2]
[313074430,1706721041693,-1107.53,0.0002,2]
[313074431,1706721041706,-9960.78,0.0002,2]
[313074432,1706721041718,-1267.67,0.0002,2]
[313074433,1706721041731,-258.58735297,0.0002,2]
[313074434,1706721041744,-2089.44,0.0002,2]
[313074435,1706721041759,-920.42,0.0002,2]
[313074436,1706721041773,-154.98450155,0.0002,2]
[313074437,1706721041783,-645.71,0.0002,2]
[313074438,1706721041794,-500.0,0.0002,2]
[313074439,1706721041809,-1278.35,0.0002,2]
[313074440,1706721041821,-500.0,0.0002,2]
[313074441,1706721041835,-500.0,0.0002,2]
[313074442,1706721041846,-6805.11,0.0002,2]
[313074443,1706721041858,-500.0,0.0002,2]
[313074444,1706721041869,-754.5,0.0002,2]
[313074445,1706721041882,-13774.12,0.0002,2]
[313074446,1706721041894,-500.0,0.0002,2]
[313074447,1706721041908,-1927.15,0.0002,2]
[313074448,1706721041921,-1427.26,0.0002,2]
[313074449,1706721041934,-500.0,0.0002,2]
[313074450,1706721041947,-151.0,0.0002,2]
[313074451,1706721041959,-500.0,0.0002,2]
[313074452,1706721041970,-500.0,0.0002,2]
[313074453,1706721041980,-500.0,0.0002,2]
[313074454,1706721041990,-500.0,0.0002,2]
[313074455,1706721042000,-981.78,0.0002,2]
[313074456,1706721042012,-3691.58,0.0002,2]
[313074457,1706721042024,-381.07651183,0.0002,2]
[313074458,1706721042035,-1126.3,0.0002,2]
[313074459,1706721042046,-1899.92,0.0002,2]
[313074460,1706721042059,-2616.0,0.0002,2]
[313074461,1706721042070,-522.02,0.0002,2]
[313074462,1706721042080,-6601.71,0.0002,2]
[313074463,1706721042090,-2230.8,0.0002,2]
[313074464,1706721042102,-1763.817324,0.0002,2]
[313074465,1706721042113,-1763.817324,0.0002,2]
[313074466,1706721042124,-628.95,0.0002,2]
[313074467,1706721042135,-3030.0,0.0002,2]
[313074468,1706721042146,-1019.85,0.0002,2]
[313074469,1706721042159,-1443.4,0.0002,2]
[313074470,1706721042170,-3197.36354211,0.00020173,2]
[313074473,1706721042181,-155.39904842,0.0002027,2]
[313074475,1706721042192,-267.89728794,0.0002027,2]
[313074477,1706721042202,-481.05017491,0.0002027,2]
[313074478,1706721042213,-611.41552988,0.00020271,2]
[313074479,1706721042223,-155.81048428,0.00020272,2]
[313074480,1706721042234,-500.0,0.00020273,2]
[313074482,1706721042245,-581.45,0.00020273,2]
[313074484,1706721042256,-578.83,0.00020273,2]
[313074486,1706721042266,-500.82,0.00020273,2]
[313074487,1706721042277,-500.0,0.00020273,2]
[313074488,1706721042288,-1042.02,0.00020273,2]
[313074489,1706721042298,-500.0,0.00020273,2]
[313074491,1706721042309,-500.0,0.00020273,2]
[313074493,1706721042320,-3182.92,0.00020273,2]
[313074495,1706721042331,-296.71682223,0.00020273,2]
[313074497,1706721042342,-500.0,0.00020273,2]
[313074500,1706721042353,-500.0,0.00020273,2]
[313074503,1706721042364,-500.0,0.00020273,2]
[313074505,1706721042376,-500.0,0.00020273,2]
[313074507,1706721042387,-1807.89,0.00020273,2]
[313074509,1706721042398,-500.0,0.00020273,2]
[313074510,1706721042409,-500.0,0.00020273,2]
[313074511,1706721042419,-500.0,0.00020273,2]
[313074513,1706721042431,-500.0,0.00020273,2]
[313074516,1706721042443,-500.0,0.00020273,2]
[313074518,1706721042454,-500.0,0.00020273,2]
[313074520,1706721042469,-2836.63,0.00020273,2]
[313074523,1706721042480,-1019.4,0.00020273,2]
[313074525,1706721042491,-1035.02,0.00020273,2]
[313074527,1706721042502,-1328.09,0.00020273,2]
[313074528,1706721042513,-500.0,0.00020273,2]
[313074530,1706721042524,-1124.8,0.00020273,2]
[313074532,1706721042535,-647.94,0.00020273,2]
[313074535,1706721042546,-500.0,0.00020273,2]
[313074539,1706721042557,-500.0,0.00020273,2]
[313074550,1706721042666,-1107.53,0.00020273,2]
[313074551,1706721042680,-9960.78,0.00020273,2]
[313074552,1706721042689,-1267.67,0.00020273,2]
[313074553,1706721042698,-2089.44,0.00020273,2]
[313074554,1706721042707,-920.42,0.00020273,2]
[313074555,1706721042716,-645.71,0.00020273,2]
[313074556,1706721042726,-500.0,0.00020273,2]
[313074557,1706721042735,-1278.35,0.00020273,2]
[313074558,1706721042744,-500.0,0.00020273,2]
[313074559,1706721042753,-500.0,0.00020273,2]
[313074560,1706721042763,-6805.11,0.00020273,2]
[313074561,1706721042772,-500.0,0.00020273,2]
[313074562,1706721042782,-754.5,0.00020273,2]
[313074563,1706721042791,-13774.12,0.00020273,2]
[313074564,1706721042800,-500.0,0.00020273,2]
[313074565,1706721042809,-1927.15,0.00020273,2]
[313074566,1706721042818,-1427.26,0.00020273,2]
[313074567,1706721042827,-500.0,0.00020273,2]
[313074568,1706721042837,-500.0,0.00020273,2]
[313074569,1706721042846,-500.0,0.00020273,2]
[313074570,1706721042856,-500.0,0.00020273,2]
[313074571,1706721042865,-500.0,0.00020273,2]
[313074572,1706721042875,-981.78,0.00020273,2]
[313074573,1706721042884,-3691.58,0.00020273,2]
[313074574,1706721042893,-1126.3,0.00020273,2]
[313074575,1706721042903,-1899.92,0.00020273,2]
[313074576,1706721042912,-2616.0,0.00020273,2]
[313074577,1706721042922,-522.02,0.00020273,2]
[313074578,1706721042932,-6601.71,0.00020273,2]
[313074579,1706721042941,-2230.8,0.00020273,2]
[313074580,1706721042951,-628.95,0.00020273,2]
[313074581,1706721042961,-3030.0,0.00020273,2]
[313074582,1706721042970,-1019.85,0.00020273,2]
[313074583,1706721042980,-1443.4,0.00020273,2]
[313074584,1706721042989,-199.6142226,0.00020274,2]
[313074586,1706721042998,-308.8657362,0.00020274,2]
[313074587,1706721043008,-157.182342,0.00020274,2]
[313074589,1706721043017,-398.0199253,0.00020274,2]
[313074591,1706721043027,-500.0,0.00020547,2]
[313074593,1706721043037,-581.45,0.00020547,2]
[313074595,1706721043046,-578.83,0.00020547,2]
[313074597,1706721043056,-500.82,0.00020547,2]
[313074599,1706721043065,-500.0,0.00020547,2]
[313074601,1706721043074,-1042.02,0.00020547,2]
[313074603,1706721043083,-151.0,0.00020547,2]
[313074605,1706721043092,-500.0,0.00020547,2]
[313074607,1706721043101,-500.0,0.00020547,2]
[313074609,1706721043110,-3182.92,0.00020547,2]
[313074610,1706721043120,-500.0,0.00020547,2]
[313074611,1706721043129,-500.0,0.00020547,2]
[313074613,1706721043138,-500.0,0.00020547,2]
[313074614,1706721043147,-507.49216995,0.00020547,2]
[313074615,1706721043157,-1807.89,0.00020547,2]
[313074616,1706721043165,-500.0,0.00020547,2]
[313074617,1706721043175,-500.0,0.00020547,2]
[313074618,1706721043184,-500.0,0.00020547,2]
[313074619,1706721043193,-500.0,0.00020547,2]
[313074620,1706721043202,-500.0,0.00020547,2]
[313074621,1706721043212,-350.250957,0.00020547,2]
[313074622,1706721043221,-350.250957,0.00020547,2]
[313074623,1706721043231,-500.0,0.00020547,2]
[313074624,1706721043244,-2836.63,0.00020547,2]
[313074625,1706721043254,-1019.4,0.00020547,2]
[313074626,1706721043263,-1035.02,0.00020547,2]
[313074627,1706721043273,-1328.09,0.00020547,2]
[313074628,1706721043283,-151.0,0.00020547,2]
[313074629,1706721043294,-500.0,0.00020547,2]
[313074630,1706721043316,-1124.8,0.00020547,2]
[313074631,1706721043328,-647.94,0.00020547,2]
[313074632,1706721043337,-310.15523794,0.00020547,2]
[313074633,1706721043347,-500.0,0.00020547,2]
[313074634,1706721043357,-1107.53,0.00020547,2]
[313074635,1706721043366,-9960.78,0.00020547,2]
[313074636,1706721043376,-1267.67,0.00020547,2]
[313074637,1706721043385,-2089.44,0.00020547,2]
[313074638,1706721043395,-920.42,0.00020547,2]
[313074639,1706721043406,-645.71,0.00020547,2]
[313074640,1706721043415,-500.0,0.00020547,2]
[313074641,1706721043425,-1278.35,0.00020547,2]
[313074642,1706721043436,-449.15887531,0.00020547,2]
[313074643,1706721043449,-500.0,0.00020547,2]
[313074644,1706721043460,-6805.11,0.00020547,2]
[313074645,1706721043470,-500.0,0.00020547,2]
[313074646,1706721043481,-754.5,0.00020547,2]
[313074647,1706721043490,-13774.12,0.00020547,2]
[313074648,1706721043500,-500.0,0.00020547,2]
[313074649,1706721043510,-1927.15,0.00020547,2]
[313074650,1706721043519,-1427.26,0.00020547,2]
[313074651,1706721043530,-151.0,0.00020547,2]
[313074652,1706721043540,-500.0,0.00020547,2]
[313074653,1706721043549,-500.0,0.00020547,2]
[313074654,1706721043558,-500.0,0.00020547,2]
[313074655,1706721043568,-500.0,0.00020547,2]
[313074656,1706721043578,-500.0,0.00020547,2]
[313074657,1706721043588,-981.78,0.00020547,2]
[313074658,1706721043598,-3691.58,0.00020547,2]
[313074659,1706721043608,-1126.3,0.00020547,2]
[313074660,1706721043618,-1899.92,0.00020547,2]
[313074661,1706721043630,-2616.0,0.00020547,2]
[313074662,1706721043641,-522.02,0.00020547,2]
[313074663,1706721043650,-6601.71,0.00020547,2]
[313074664,1706721043661,-2230.8,0.00020547,2]
[313074665,1706721043671,-1763.817324,0.00020547,2]
[313074666,1706721043680,-1763.817324,0.00020547,2]
[313074667,1706721043690,-628.95,0.00020547,2]
[313074668,1706721043699,-3030.0,0.00020547,2]
[313074669,1706721043709,-1019.85,0.00020547,2]
[313074670,1706721043719,-1443.4,0.00020547,2]
[313074671,1706721043729,-151.0,0.00020818,2]
[313074672,1706721043739,-500.0,0.00020821,2]
[313074673,1706721043748,-581.45,0.00020821,2]
[313074674,1706721043758,-251.65857678,0.00020821,2]
[313074675,1706721043822,-327.17142322,0.00020821,2]
[313074676,1706721043831,-500.82,0.00020821,2]
[313074677,1706721043841,-500.0,0.00020821,2]
[313074678,1706721043850,-1042.02,0.00020821,2]
[313074679,1706721043859,-318.97016221,0.00020821,2]
[313074680,1706721043999,-184.00622728,0.00018866,2]
[313074681,1706721044010,-500.0,0.00019452,2]
[313074682,1706721044019,-21.39091093,0.00019726,2]
[313074683,1706721044031,-478.60908907,0.00019726,2]
[313074684,1706721044041,-256.13781379,0.0002,2]
[313074685,1706721044053,-243.86218621,0.0002,2]
[313074686,1706721044062,-500.0,0.00020273,2]
[313074687,1706721044071,-500.0,0.00020547,2]
[313074688,1706721044081,-54.36495707,0.00020821,2]
[313074689,1706721044090,-500.0,0.00020821,2]
[313074690,1706721044099,-3182.92,0.00020821,2]
[313074691,1706721044108,-500.0,0.00020821,2]
[313074692,1706721044118,-500.0,0.00020821,2]
[313074693,1706721044128,-500.0,0.00020821,2]
[313074694,1706721044137,-1807.89,0.00020821,2]
[313074695,1706721044147,-607.6284848,0.00020821,2]
[313074696,1706721044157,-500.0,0.00020821,2]
[313074697,1706721044167,-500.0,0.00020821,2]
[313074698,1706721044177,-500.0,0.00020821,2]
[313074699,1706721044187,-500.0,0.00020821,2]
[313074700,1706721044196,-350.250957,0.00020821,2]
[313074701,1706721044205,-350.250957,0.00020821,2]
[313074702,1706721044215,-500.0,0.00020821,2]
[313074703,1706721044225,-2836.63,0.00020821,2]
[313074704,1706721044234,-1019.4,0.00020821,2]
[313074705,1706721044243,-1035.02,0.00020821,2]
[313074706,1706721044253,-1328.09,0.00020821,2]
[313074707,1706721044262,-151.0,0.00020821,2]
[313074708,1706721044271,-500.0,0.00020821,2]
[313074709,1706721044281,-1124.8,0.00020821,2]
[313074710,1706721044292,-647.94,0.00020821,2]
[313074711,1706721044301,-500.0,0.00020821,2]
[313074712,1706721044310,-1107.53,0.00020821,2]
[313074713,1706721044320,-6139.15352263,0.00020821,2]
[313074714,1706721044436,-3821.62647737,0.00020821,2]
[313074715,1706721044446,-1267.67,0.00020821,2]
[313074716,1706721044457,-2089.44,0.00020821,2]
[313074717,1706721044467,-920.42,0.00020821,2]
[313074718,1706721044477,-375.92087562,0.00020821,2]
[313074719,1706721044489,-269.78912438,0.00020821,2]
[313074720,1706721044499,-500.0,0.00020821,2]
[313074721,1706721044509,-1278.35,0.00020821,2]
[313074722,1706721044518,-500.0,0.00020821,2]
[313074723,1706721044528,-6805.11,0.00020821,2]
[313074724,1706721044538,-500.0,0.00020821,2]
[313074725,1706721044548,-754.5,0.00020821,2]
[313074726,1706721044557,-13774.12,0.00020821,2]
[313074727,1706721044567,-500.0,0.00020821,2]
[313074728,1706721044576,-1927.15,0.00020821,2]
[313074729,1706721044586,-1427.26,0.00020821,2]
[313074730,1706721044595,-500.0,0.00020821,2]
[313074731,1706721044604,-151.0,0.00020821,2]
[313074732,1706721044614,-500.0,0.00020821,2]
[313074733,1706721044623,-500.0,0.00020821,2]
[313074734,1706721044632,-500.0,0.00020821,2]
[313074735,1706721044642,-500.0,0.00020821,2]
[313074736,1706721044651,-981.78,0.00020821,2]
[313074737,1706721044753,-3691.58,0.00020821,2]
[313074738,1706721044763,-1126.3,0.00020821,2]
[313074739,1706721044772,-1899.92,0.00020821,2]
[313074740,1706721044781,-2433.14087562,0.00020821,2]
[313074741,1706721044799,-182.85912438,0.00020821,2]
[313074742,1706721044808,-522.02,0.00020821,2]
[313074743,1706721044818,-6601.71,0.00020821,2]
[313074744,1706721044828,-684.02176701,0.00020821,2]
[313074865,1706721325831,280.0,0.00021899,7]
[313074903,1706721620592,-495.02412602,0.00017077,2]
[313074904,1706721620614,-155.17934871,0.00017077,2]
[313074905,1706721620638,-3750.94562833,0.00017077,2]
[313074906,1706721620658,-689.08875682,0.00017078,2]
[313074907,1706721620680,-480.5285985,0.00017078,2]
[313074908,1706721620700,-166.94158022,0.00017079,2]
[313074909,1706721620723,-1996.50298693,0.00017079,2]
[313074910,1706721620744,-500.0,0.0001708,2]
[313074911,1706721620765,-83824.13419779,0.0001708,2]
[313074912,1706721620786,-1743.62109759,0.0001708,2]
[313074913,1706721620807,-904.96914882,0.0001708,2]
[313074914,1706721620828,-3490.97720869,0.0001708,2]
[313074915,1706721620847,-471.35573788,0.0001708,2]
[313074916,1706721620870,-2039.7315837,0.0001708,2]
[313074918,1706721627325,391.0,0.0002273,7]
[313074921,1706721696340,154.98450155,0.00016577,3]
[313074922,1706721701026,-7971.79381667,0.00016577,2]
[313074923,1706721701047,-261.50125071,0.00016577,2]
[313074924,1706721701068,-562.41090453,0.00016577,2]
[313074925,1706721701089,-199.49499047,0.00016578,2]
[313074926,1706721701109,-1581.70409938,0.00016578,2]
[313074927,1706721701131,-608.8922524,0.00016579,2]
[313074928,1706721701154,-1244.16147081,0.00016579,2]
[313074929,1706721701176,-235.671592,0.0001658,2]
[313074930,1706721701197,-76959.36962303,0.00017076,2]
[313074932,1706721710342,154.98450155,0.00015367,2]
[313074933,1706721728346,154.98450155,0.00015367,2]
[313074934,1706721744339,154.98450155,0.00015367,2]
[313074936,1706721762342,154.98450155,0.00014914,2]
[313074947,1706721770967,-161.28090304,0.00016472,2]
[313074948,1706721770990,-261.50125071,0.00016472,2]
[313074949,1706721771014,-171.19787537,0.00016472,2]
[313074950,1706721771037,-154.98450155,0.00016472,2]
[313074951,1706721771065,-199.49499047,0.00016472,2]
[313074952,1706721771085,-527.4703049,0.00016473,2]
[313074953,1706721771106,-1698.26983511,0.00016473,2]
[313074954,1706721771128,-1581.70409938,0.00016473,2]
[313074955,1706721771150,-500.0,0.00016474,2]
[313074956,1706721771173,-904.96914882,0.00016474,2]
[313074957,1706721771196,-213.76447974,0.00016474,2]
[313074958,1706721771219,-160.50111058,0.00016475,2]
[313074959,1706721771245,-176.81034291,0.00016475,2]
[313074960,1706721771267,-1743.62109759,0.00016572,2]
[313074961,1706721771290,-18481.43005983,0.00016572,2]
[313074962,1706721780343,154.98450155,0.00014914,2]
[313074963,1706721840436,-1486.10490715,0.00016468,2]
[313074964,1706721840457,-18925.89509285,0.00016468,2]
[313074966,1706721926447,360.07446798,0.00021904,7]
[313074967,1706721926475,30.92553202,0.00021904,7]
[313074971,1706722018983,24900.0,0.00015394,2]
[313074973,1706722065896,235.671592,0.00015353,2]
[313074978,1706722226517,391.0,0.00021609,7]
[313075029,1706722231945,-243.52267023,0.00016234,2]
[313075031,1706722231954,-589.27783595,0.00016234,2]
[313075033,1706722231963,-154.98450155,0.00016235,2]
[313075035,1706722231972,-171.19787537,0.00016235,2]
[313075037,1706722231981,-527.4703049,0.00016236,2]
[313075039,1706722231991,-500.0,0.00016236,2]
[313075041,1706722232000,-19892.62116688,0.00016236,2]
[313075043,1706722232010,-154.98450155,0.00016237,2]
[313075045,1706722232019,-4820.73788709,0.00016237,2]
[313075047,1706722232028,-37015.11340777,0.00016237,2]
[313075049,1706722232036,-167.27020705,0.00016238,2]
[313075051,1706722232046,-3750.94562833,0.00016238,2]
[313075053,1706722232054,-1743.62109759,0.00016238,2]
[313075055,1706722232063,-1996.50298693,0.00016238,2]
[313075057,1706722232073,-154.98450155,0.00016239,2]
[313075059,1706722232081,-160.50111057,0.00016241,2]
[313075061,1706722232091,-76968.47658904,0.00016333,2]
[313075146,1706722238054,-19729.41596752,0.00016235,2]
[313075147,1706722238063,-20928.42010266,0.00016235,2]
[313075148,1706722238072,-6855.65760875,0.00016333,2]
[313075149,1706722238082,-21715.3088828,0.00016334,2]
[313075150,1706722238091,-562.41090453,0.00016337,2]
[313075151,1706722238100,-562.41090453,0.00016346,2]
[313075152,1706722238111,-3845.54835849,0.00016462,2]
[313075153,1706722238120,-1485.65482574,0.00016467,2]
[313075154,1706722238129,-155.4829007,0.00016467,2]
[313075155,1706722238138,-261.25055706,0.00016571,2]
[313075156,1706722238148,-860.17493763,0.00016571,2]
[313075157,1706722238157,-260.71148909,0.00016571,2]
[313075158,1706722238167,-165.38202706,0.00016571,2]
[313075159,1706722238176,-480.79170095,0.00016571,2]
[313075160,1706722238186,-267.89728794,0.00016571,2]
[313075161,1706722238196,-161.28090304,0.00016571,2]
[313075162,1706722238205,-1696.97995964,0.00016571,2]
[313075163,1706722238214,-2106.9014739,0.00016571,2]
[313075164,1706722238223,-1243.62345662,0.00017075,2]
[313075165,1706722238233,-7829.55202312,0.00017075,2]
[313075166,1706722238340,-608.1664146,0.00017075,2]
[313075167,1706722238350,-330.0505798,0.00017075,2]
[313075168,1706722238359,-620.32592529,0.00017075,2]
[313075169,1706722238369,-200.0,0.00017859,2]
[313075170,1706722238378,-405.87364156,0.00017899,2]
[313075171,1706722238387,-3327.29463854,0.000179,2]
[313075172,1706722238397,-471.21066683,0.00018082,2]
[313075173,1706722238407,-155.00155002,0.00018082,2]
[313075174,1706722238415,-688.5568522,0.00018082,2]
[313075175,1706722238424,-494.61800468,0.00018082,2]
[313075176,1706722238433,-155.02325349,0.00018082,2]
[313075177,1706722238442,-181.26836622,0.00018082,2]
[313075178,1706722238452,-228.05988234,0.00018083,2]
[313075179,1706722238461,-272.00304057,0.00018083,2]
[313075180,1706722238471,-3323.55834132,0.00018083,2]
[313075181,1706722238480,-155.0,0.00018084,2]
[313075182,1706722238489,-1774.32773551,0.00018084,2]
[313075183,1706722238498,-175.41050346,0.00018087,2]
[313075184,1706722238507,-453.08497735,0.00018088,2]
[313075185,1706722238517,-1295.09273991,0.00018091,2]
[313075186,1706722238526,-155.81048428,0.00018201,2]
[313075187,1706722238535,-611.41552988,0.00018201,2]
[313075188,1706722238545,-500.0,0.00019178,2]
[313075189,1706722238555,-500.0,0.00019178,2]
[313075190,1706722238564,-500.0,0.00019178,2]
[313075191,1706722238573,-500.0,0.00019178,2]
[313075192,1706722238582,-296.71682223,0.00019178,2]
[313075193,1706722238591,-500.0,0.00019178,2]
[313075194,1706722238600,-500.0,0.00019178,2]
[313075195,1706722238610,-1581.9,0.00019178,2]
[313075196,1706722238619,-534.97764921,0.00019178,2]
[313075197,1706722238628,-500.0,0.00019178,2]
[313075198,1706722238637,-500.0,0.00019178,2]
[313075199,1706722238646,-500.0,0.00019178,2]
[313075200,1706722238655,-500.0,0.00019178,2]
[313075201,1706722238666,-342.75143032,0.00019178,2]
[313075202,1706722238675,-500.0,0.00019178,2]
[313075203,1706722238684,-500.0,0.00019178,2]
[313075204,1706722238694,-500.0,0.00019178,2]
[313075205,1706722238704,-500.0,0.00019178,2]
[313075206,1706722238713,-500.0,0.00019178,2]
[313075207,1706722238723,-500.0,0.00019178,2]
[313075208,1706722238732,-629.52,0.00019178,2]
[313075209,1706722238741,-3050.29,0.00019178,2]
[313075210,1706722238751,-500.0,0.00019178,2]
[313075211,1706722238761,-571.96371356,0.00019178,2]
[313075212,1706722238771,-500.0,0.00019178,2]
[313075213,1706722238781,-500.0,0.00019178,2]
[313075214,1706722238790,-500.0,0.00019178,2]
[313075215,1706722238799,-500.0,0.00019178,2]
[313075216,1706722238808,-500.0,0.00019178,2]
[313075217,1706722238817,-500.0,0.00019178,2]
[313075218,1706722238828,-723.07,0.00019178,2]
[313075219,1706722238840,-500.0,0.00019178,2]
[313075220,1706722238850,-1077.94,0.00019178,2]
[313075221,1706722238859,-500.0,0.00019178,2]
[313075222,1706722238870,-500.0,0.00019178,2]
[313075223,1706722238878,-542.32133494,0.00019178,2]
[313075224,1706722238888,-1019.85,0.00019178,2]